bitfinex/quotes_BTCUSD_20250313
["timestamp","ask_amount","ask_price","bid_price","bid_amount"]
[1741862622429,0.0003388,83271.0,83270.0,1.05742194]
[1741862622659,0.0003388,83271.0,83270.0,1.01995199]
[1741862624487,0.0003388,83271.0,83270.0,1.04385347]
[1741862624714,0.0003388,83271.0,83270.0,1.05911686]
[1741862625138,0.0003388,83271.0,83270.0,1.05511686]
[1741862625310,0.0003388,83271.0,83270.0,1.06011686]
[1741862625524,0.0003388,83271.0,83270.0,2.55511686]
[1741862625751,0.0003388,83271.0,83270.0,2.51111686]
[1741862625921,0.0003388,83271.0,83270.0,2.56111686]
[1741862626125,0.0003388,83271.0,83270.0,2.57912099]
[1741862627007,0.0003388,83271.0,83270.0,2.58512099]
[1741862627620,0.0003388,83271.0,83270.0,2.53512099]
[1741862628024,0.0003388,83271.0,83270.0,2.58512099]
[1741862628941,0.0003388,83271.0,83270.0,2.53512099]
[1741862629152,0.0003388,83271.0,83270.0,2.58512099]
[1741862630185,8e-07,83271.0,83270.0,2.58512099]
[1741862630392,0.000339,83285.0,83284.0,0.330849]
[1741862630591,0.000339,83285.0,83284.0,0.45054999]
[1741862631445,0.000339,83285.0,83284.0,0.49874999]
[1741862631649,0.000339,83285.0,83284.0,0.5018691]
[1741862633772,0.000339,83285.0,83284.0,0.4988691]
[1741862633968,0.000339,83285.0,83284.0,1.9988691]
[1741862634224,0.000339,83285.0,83284.0,2.02821304]
[1741862634415,0.000339,83285.0,83284.0,2.02521304]
[1741862634619,0.000339,83285.0,83284.0,2.02222604]
[1741862634818,0.000339,83285.0,83284.0,2.02722604]
[1741862638144,0.252484,83285.0,83284.0,0.1298201]
[1741862638345,0.252484,83285.0,83284.0,0.01011911]
[1741862638533,0.26420725,83285.0,83284.0,0.01011911]
[1741862639155,0.26420725,83285.0,83284.0,0.00511911]
[1741862640522,0.26420725,83285.0,83284.0,0.00011911]
[1741862640722,0.26420725,83285.0,83284.0,0.00111911]
[1741862640881,0.33980725,83285.0,83284.0,0.00111911]
[1741862641284,0.35862105,83285.0,83284.0,0.00111911]
[1741862642084,0.35862105,83285.0,83284.0,0.00011911]
[1741862643461,0.35862105,83285.0,83284.0,0.24026111]
[1741862643462,0.10647605,83285.0,83284.0,0.24026111]
[1741862643662,0.03087605,83285.0,83284.0,0.25226811]
[1741862644978,0.03087605,83285.0,83284.0,0.00011911]
[1741862645915,0.0191528,83285.0,83284.0,0.00011911]
[1741862646326,0.03076772,83285.0,83284.0,0.00011911]
[1741862647165,0.01195392,83285.0,83284.0,0.01212611]
[1741862647364,0.01195392,83285.0,83284.0,0.13302761]
[1741862647566,0.000339,83285.0,83284.0,1.63302761]
[1741862647771,0.000339,83285.0,83284.0,1.6318271]
[1741862648390,0.000339,83285.0,83284.0,1.50011911]
[1741862648592,0.252484,83285.0,83284.0,0.00011911]
[1741862648797,0.3171464,83285.0,83284.0,0.00011911]
[1741862649009,0.32881012,83285.0,83284.0,0.00011911]
[1741862649216,0.01200272,83285.0,83284.0,0.00011911]
[1741862649402,0.26414772,83285.0,83284.0,0.00011911]
[1741862649803,0.26414772,83285.0,83284.0,0.00111911]
[1741862650249,0.28296307,83285.0,83284.0,0.00011911]
[1741862651031,0.28296307,83285.0,83284.0,0.00211911]
[1741862651374,0.28296307,83285.0,83284.0,0.00228851]
[1741862651586,0.28296307,83285.0,83284.0,0.00028851]
[1741862657265,0.37709246,83285.0,83284.0,0.00028851]
[1741862657490,0.28296307,83285.0,83284.0,0.00028851]
[1741862661418,0.34996162,83285.0,83284.0,0.00028851]
[1741862661621,0.77586162,83285.0,83284.0,5.1e-07]
[1741862662005,0.75704627,83285.0,83284.0,5.1e-07]
[1741862663892,0.75804627,83285.0,83284.0,5.1e-07]
[1741862664191,0.87800716,83285.0,83284.0,5.1e-07]
[1741862664391,0.87700716,83285.0,83284.0,5.1e-07]
[1741862664645,0.87800716,83285.0,83284.0,5.1e-07]
[1741862666109,0.88000716,83285.0,83284.0,5.1e-07]
[1741862666316,0.89882637,83285.0,83284.0,5.1e-07]
[1741862672909,0.77886548,83285.0,83284.0,5.1e-07]
[1741862673106,0.76101277,83285.0,83284.0,5.1e-07]
[1741862673488,0.75673441,83285.0,83284.0,5.1e-07]
[1741862674072,0.75573441,83285.0,83284.0,5.1e-07]
[1741862674285,0.75373441,83285.0,83284.0,5.1e-07]
[1741862674522,0.8736953,83285.0,83284.0,5.1e-07]
[1741862674720,0.8756953,83285.0,83284.0,5.1e-07]
[1741862674991,0.61929356,83285.0,83284.0,5.1e-07]
[1741862675161,0.63383441,83285.0,83284.0,5.1e-07]
[1741862676590,0.65265242,83285.0,83284.0,5.1e-07]
[1741862676848,0.65065242,83285.0,83284.0,5.1e-07]
[1741862677219,0.64865242,83285.0,83284.0,5.1e-07]
[1741862677425,0.65165242,83285.0,83284.0,5.1e-07]
[1741862677629,0.76961331,83285.0,83284.0,5.1e-07]
[1741862678003,0.77161331,83285.0,83284.0,5.1e-07]
[1741862678516,0.58465387,83285.0,83284.0,5.1e-07]
[1741862679322,0.63711157,83285.0,83284.0,5.1e-07]
[1741862679473,0.65165242,83285.0,83284.0,5.1e-07]
[1741862680146,0.64865242,83285.0,83284.0,5.1e-07]
[1741862680502,0.64965242,83285.0,83284.0,5.1e-07]
[1741862680719,0.76745075,83285.0,83284.0,5.1e-07]
[1741862681127,0.84835075,83285.0,83284.0,5.1e-07]
[1741862682325,0.89615075,83285.0,83284.0,5.1e-07]
[1741862683298,0.89315075,83285.0,83284.0,5.1e-07]
[1741862683505,1.03493274,83285.0,83284.0,5.1e-07]
[1741862683663,1.03893274,83285.0,83284.0,5.1e-07]
[1741862683866,1.04293274,83285.0,83284.0,5.1e-07]
[1741862684059,1.03793274,83285.0,83284.0,5.1e-07]
[1741862684607,1.04393274,83285.0,83284.0,5.1e-07]
[1741862684805,1.03993274,83285.0,83284.0,5.1e-07]
[1741862685132,1.04493274,83285.0,83284.0,5.1e-07]
[1741862686232,1.06375156,83285.0,83284.0,5.1e-07]
[1741862688336,0.90315156,83285.0,83284.0,5.1e-07]
[1741862688520,0.82325156,83285.0,83284.0,5.1e-07]
[1741862690056,0.81825156,83285.0,83284.0,5.1e-07]
[1741862690569,0.81525156,83285.0,83284.0,5.1e-07]
[1741862690725,0.82025156,83285.0,83284.0,5.1e-07]
[1741862691129,0.81525156,83285.0,83284.0,5.1e-07]
[1741862691772,0.81925156,83285.0,83284.0,5.1e-07]
[1741862694016,0.012009,83269.0,83268.0,0.0001694]
[1741862694223,0.08840203,83269.0,83268.0,0.00058276]
[1741862694456,0.10870809,83269.0,83268.0,0.00058276]
[1741862694671,0.12752771,83269.0,83268.0,0.00058276]
[1741862695056,0.36771271,83269.0,83268.0,0.00058276]
[1741862697243,0.36771271,83269.0,83268.0,0.00158276]
[1741862709898,0.36771271,83269.0,83268.0,0.0008614]
[1741862713780,0.34740665,83269.0,83268.0,0.0008614]
[1741862719107,0.64740665,83269.0,83268.0,0.0008614]
[1741862719354,0.67698703,83269.0,83268.0,0.0008614]
[1741862719773,0.67698703,83269.0,83268.0,4e-07]
[1741862719978,0.75958703,83269.0,83268.0,4e-07]
[1741862720188,0.87954792,83269.0,83268.0,4e-07]
[1741862720743,0.552236,83255.0,83254.0,0.0001694]
[1741862720904,0.62181321,83255.0,83254.0,0.0001694]
[1741862721103,0.62999121,83255.0,83254.0,0.0001694]
[1741862722162,0.62999121,83255.0,83254.0,0.0051694]
[1741862722363,0.252306,83232.0,83231.0,0.05891596]
[1741862722970,0.012014,83231.0,83228.0,0.10762419]
[1741862723362,0.03083928,83231.0,83228.0,0.10762419]
[1741862723720,0.012014,83231.0,83228.0,0.10762419]
[1741862723941,0.0878047,83231.0,83228.0,0.10762419]
[1741862724592,0.15869834,83231.0,83228.0,0.10762419]
[1741862724788,0.15967984,83231.0,83230.0,0.101]
[1741862725619,0.45967984,83231.0,83230.0,0.1]
[1741862725902,0.46772434,83231.0,83230.0,0.1]
[1741862726406,0.48655157,83231.0,83230.0,0.1]
[1741862727054,0.49878141,83231.0,83230.0,0.1]
[1741862728747,0.49878141,83231.0,83230.0,0.102]
[1741862729088,0.49878141,83231.0,83230.0,0.1]
[1741862729305,0.49878141,83231.0,83230.0,0.101]
[1741862731728,0.19878141,83231.0,83230.0,0.101]
[1741862734503,0.19878141,83231.0,83230.0,0.1011695]
[1741862734716,0.19878141,83231.0,83230.0,0.1001695]
[1741862734916,0.19912041,83231.0,83230.0,0.1001695]
[1741862735141,0.19912041,83231.0,83230.0,0.1011695]
[1741862737271,0.57922041,83231.0,83230.0,0.1011695]
[1741862737885,0.57922041,83231.0,83230.0,0.1001695]
[1741862738243,0.58022041,83231.0,83230.0,0.1001695]
[1741862738674,0.58222041,83231.0,83230.0,0.1001695]
[1741862739216,0.50212041,83231.0,83230.0,0.1001695]
[1741862742443,0.49010641,83231.0,83230.0,0.1001695]
[1741862742801,0.50212041,83231.0,83230.0,0.1001695]
[1741862743140,0.54852041,83231.0,83230.0,0.1001695]
[1741862746356,0.52969318,83231.0,83230.0,0.1001695]
[1741862746788,0.52969318,83231.0,83230.0,5e-07]
[1741862746995,0.56685885,83228.0,83227.0,2e-07]
[1741862747265,0.74338907,83228.0,83227.0,2e-07]
[1741862747463,0.75230325,83228.0,83227.0,2e-07]
[1741862748233,0.7547181,83228.0,83227.0,2e-07]
[1741862749084,0.7527181,83228.0,83227.0,2e-07]
[1741862749450,0.7577181,83228.0,83227.0,2e-07]
[1741862749655,0.77654795,83228.0,83227.0,2e-07]
[1741862749977,0.77554795,83228.0,83227.0,2e-07]
[1741862751338,0.77854795,83228.0,83227.0,2e-07]
[1741862752820,0.65858706,83228.0,83227.0,2e-07]
[1741862753018,0.64404621,83228.0,83227.0,2e-07]
[1741862753601,0.03515888,83228.0,83227.0,2e-07]
[1741862753769,0.26864703,83228.0,83227.0,2e-07]
[1741862754598,0.252333,83223.0,83222.0,0.0764112]
[1741862754801,0.26464703,83228.0,83222.0,0.0764112]
[1741862754998,0.00099608,83223.0,83222.0,0.0764112]
[1741862755203,0.240318,83223.0,83222.0,0.0764112]
[1741862755403,0.24131408,83223.0,83222.0,0.0764112]
[1741862755605,0.00099608,83223.0,83222.0,0.0764112]
[1741862755900,0.00698412,83223.0,83222.0,0.0764112]
[1741862756098,0.240311,83226.0,83222.0,0.0764112]
[1741862756475,0.013015,83223.0,83222.0,0.0764112]
[1741862757284,0.240332,83219.0,83216.0,0.0126271]
[1741862757484,0.252351,83217.0,83216.0,0.0126271]
[1741862758347,0.0188298,83217.0,83216.0,0.0126271]
[1741862758500,0.0188298,83217.0,83216.0,0.2649811]
[1741862758861,0.0188298,83217.0,83216.0,0.3411811]
[1741862758862,0.01981137,83217.0,83216.0,0.3411811]
[1741862759797,0.0188298,83217.0,83216.0,0.0888271]
[1741862760109,0.01980846,83217.0,83216.0,0.0888271]
[1741862762671,0.01980846,83217.0,83216.0,0.1008431]
[1741862763505,0.0188298,83217.0,83216.0,0.1008431]
[1741862763713,0.0188298,83217.0,83216.0,0.10204466]
[1741862763851,0.0188298,83217.0,83216.0,0.1008431]
[1741862764053,0.0188298,83217.0,83216.0,0.0888271]
[1741862764330,0.03737466,83217.0,83216.0,0.0126271]
[1741862765166,0.11561343,83217.0,83216.0,0.0126271]
[1741862765599,0.03737466,83217.0,83216.0,0.0126271]
[1741862768643,0.05191551,83217.0,83216.0,0.0126271]
[1741862768890,0.10927896,83217.0,83216.0,0.0126271]
[1741862769049,0.09044916,83217.0,83216.0,0.0126271]
[1741862769809,0.39044916,83217.0,83216.0,0.0126271]
[1741862770100,0.55631005,83217.0,83216.0,0.0126271]
[1741862770313,0.63491005,83217.0,83216.0,0.0126271]
[1741862771915,0.65574309,83217.0,83216.0,0.0126271]
[1741862772132,0.65574309,83217.0,83216.0,1e-07]
[1741862772566,0.65674309,83217.0,83216.0,1e-07]
[1741862773131,0.65674309,83217.0,83210.0,5e-07]
[1741862773132,0.64780985,83211.0,83210.0,5e-07]
[1741862773266,0.70538991,83211.0,83210.0,5e-07]
[1741862773466,0.71174083,83211.0,83210.0,5e-07]
[1741862774211,0.63084083,83211.0,83210.0,5e-07]
[1741862775037,0.63284083,83211.0,83210.0,5e-07]
[1741862775235,0.66892804,83211.0,83210.0,5e-07]
[1741862775866,0.66992804,83211.0,83210.0,5e-07]
[1741862777718,0.68876102,83211.0,83210.0,5e-07]
[1741862782570,0.76886102,83211.0,83210.0,5e-07]
[1741862783093,0.76920002,83211.0,83210.0,5e-07]
[1741862783308,0.81550002,83211.0,83210.0,5e-07]
[1741862783488,0.81350002,83211.0,83210.0,5e-07]
[1741862783896,0.81650002,83211.0,83210.0,5e-07]
[1741862784378,0.81350002,83211.0,83210.0,5e-07]
[1741862784797,0.81650002,83211.0,83210.0,5e-07]
[1741862785177,0.81850002,83211.0,83210.0,5e-07]
[1741862785371,0.81650002,83211.0,83210.0,5e-07]
[1741862785745,0.81950002,83211.0,83210.0,5e-07]
[1741862786392,0.73940002,83211.0,83210.0,5e-07]
[1741862789044,0.72485917,83211.0,83210.0,5e-07]
[1741862789199,0.67855917,83211.0,83210.0,5e-07]
[1741862789428,0.69310002,83211.0,83210.0,5e-07]
[1741862789633,0.65701281,83211.0,83210.0,5e-07]
[1741862790902,0.65301281,83211.0,83210.0,5e-07]
[1741862791078,0.78201281,83211.0,83210.0,5e-07]
[1741862791283,0.76017983,83211.0,83210.0,5e-07]
[1741862791600,0.76317983,83211.0,83210.0,5e-07]
[1741862791812,0.88014072,83211.0,83210.0,5e-07]
[1741862792152,0.88314072,83211.0,83210.0,5e-07]
[1741862792353,0.80544072,83211.0,83210.0,5e-07]
[1741862792592,0.75414072,83211.0,83210.0,5e-07]
[1741862792958,0.75814072,83211.0,83210.0,5e-07]
[1741862794283,0.47697567,83211.0,83210.0,5e-07]
[1741862795383,0.45814072,83211.0,83210.0,5e-07]
[1741862797353,0.01454085,83210.0,83187.0,0.0781393]
[1741862797510,0.252439,83188.0,83187.0,0.0781393]
[1741862797939,0.27473879,83188.0,83187.0,0.0781393]
[1741862798378,0.29357485,83188.0,83187.0,0.0781393]
[1741862798859,0.29398944,83188.0,83187.0,0.0781393]
[1741862800756,0.04747525,83188.0,83187.0,0.0781393]
[1741862800957,0.04747525,83188.0,83187.0,0.0901603]
[1741862801367,0.04845114,83188.0,83187.0,0.0901603]
[1741862802239,0.01925065,83188.0,83187.0,0.0901603]
[1741862803233,0.01925065,83188.0,83187.0,0.0781393]
[1741862804333,0.03127065,83188.0,83187.0,0.0781393]
[1741862805072,0.03224509,83188.0,83187.0,0.0781393]
[1741862805305,0.05458517,83188.0,83187.0,0.0781393]
[1741862805660,0.04256517,83188.0,83187.0,0.0781393]
[1741862805865,0.29500417,83188.0,83187.0,0.0781393]
[1741862806952,0.04256517,83188.0,83187.0,0.0901603]
[1741862807148,0.07326609,83188.0,83187.0,0.3305823]
[1741862807349,0.04256517,83188.0,83187.0,0.0781393]
[1741862807748,0.04256517,83188.0,83187.0,0.0783088]
[1741862807970,0.04256517,83188.0,83187.0,0.3187308]
[1741862808172,0.04256517,83188.0,83187.0,0.0783088]
[1741862808686,0.04256517,83188.0,83187.0,0.3307518]
[1741862809065,0.04159073,83188.0,83187.0,0.3307518]
[1741862809465,0.04159073,83188.0,83187.0,0.0783088]
[1741862809840,0.04848879,83188.0,83187.0,0.0783088]
[1741862812020,0.06050879,83188.0,83187.0,0.0783088]
[1741862812401,0.04848879,83188.0,83187.0,0.0783088]
[1741862813785,0.11824867,83188.0,83187.0,0.0001695]
[1741862814965,0.06050879,83188.0,83187.0,0.0001695]
[1741862819364,0.09662847,83188.0,83187.0,0.0001695]
[1741862821495,0.15608652,83188.0,83187.0,0.0001695]
[1741862821700,0.17062737,83188.0,83187.0,0.0001695]
[1741862822106,0.29332737,83188.0,83187.0,0.0001695]
[1741862822308,0.3944522,83188.0,83187.0,0.0001695]
[1741862822935,0.35867132,83188.0,83187.0,0.0001695]
[1741862823156,0.02999153,83188.0,83187.0,0.0121905]
[1741862823388,0.02999153,83188.0,83187.0,0.0001695]
[1741862823591,0.03511347,83188.0,83187.0,0.0001695]
[1741862823765,0.04192317,83188.0,83187.0,0.0001695]
[1741862823972,0.04492317,83188.0,83187.0,0.0001695]
[1741862824146,0.12514459,83188.0,83187.0,0.0001695]
[1741862824349,0.03290317,83188.0,83187.0,0.0001695]
[1741862824771,0.03290317,83188.0,83187.0,0.0121905]
[1741862825179,0.03290317,83188.0,83187.0,0.01339258]
[1741862825409,0.03196804,83188.0,83187.0,0.01339246]
[1741862825548,0.04492792,83188.0,83187.0,1.51339246]
[1741862825756,0.04492792,83188.0,83187.0,1.5121905]
[1741862825985,4.7e-07,83188.0,83187.0,1.63189149]
[1741862826199,4.7e-07,83188.0,83187.0,2.01609149]
[1741862826408,0.10677901,83210.0,83209.0,0.252375]
[1741862826809,0.113661,83210.0,83209.0,0.252375]
[1741862827009,0.12661092,83210.0,83209.0,0.252375]
[1741862827269,0.12661092,83210.0,83209.0,0.251375]
[1741862827466,0.12661092,83210.0,83209.0,0.331875]
[1741862829086,0.12661092,83210.0,83209.0,1.831875]
[1741862829306,0.12661092,83210.0,83209.0,1.830875]
[1741862829749,0.01983191,83210.0,83209.0,1.830875]
[1741862830131,0.01983191,83210.0,83209.0,1.95057599]
[1741862830271,0.01983191,83210.0,83209.0,1.99617599]
[1741862830671,0.01983191,83210.0,83209.0,1.99817599]
[1741862830919,0.02017071,83210.0,83209.0,1.99617599]
[1741862831365,0.02017071,83210.0,83209.0,2.00017599]
[1741862831946,0.02017071,83210.0,83209.0,0.50017599]
[1741862832447,0.02017071,83210.0,83209.0,2.00017599]
[1741862832648,0.02017071,83210.0,83209.0,2.00117599]
[1741862833427,0.02017071,83210.0,83209.0,0.50117599]
[1741862833684,0.02017071,83210.0,83209.0,0.255375]
[1741862834741,0.02017071,83210.0,83209.0,0.005]
[1741862835088,0.02706304,83210.0,83209.0,0.005]
[1741862835290,0.00823164,83210.0,83209.0,0.005]
[1741862835708,0.00823164,83210.0,83209.0,0.004]
[1741862836085,0.02024864,83210.0,83209.0,0.004]
[1741862836307,0.0992187,83210.0,83209.0,0.004]
[1741862836509,0.012019,83198.0,83196.0,0.15944]
[1741862836772,0.01202,83190.0,83179.0,1.003522]
[1741862837001,0.01202,83193.0,83188.0,0.15944]
[1741862837205,0.05920822,83210.0,83197.0,0.012019]
[1741862837408,0.102833,83209.0,83204.0,0.012018]
[1741862837612,0.08486008,83209.0,83204.0,0.012018]
[1741862837784,0.012018,83205.0,83200.0,0.012019]
[1741862837990,0.24039,83199.0,83196.0,0.001]
[1741862838143,0.252412,83197.0,83196.0,0.001]
[1741862838934,0.05786151,83197.0,83195.0,0.240398]
[1741862839136,0.05786151,83197.0,83196.0,0.012019]
[1741862840432,0.27466524,83197.0,83195.0,0.001]
[1741862840640,0.02225324,83197.0,83196.0,0.241396]
[1741862840940,0.02225324,83197.0,83196.0,0.254415]
[1741862841268,0.012019,83198.0,83196.0,0.001]
[1741862841485,0.252412,83197.0,83196.0,0.001]
[1741862841955,0.33512229,83197.0,83196.0,0.001]
[1741862842170,0.252412,83197.0,83196.0,0.001]
[1741862842371,0.252412,83197.0,83195.0,0.001]
[1741862842574,0.012019,83196.0,83195.0,0.001]
[1741862842981,0.01202,83188.0,83187.0,0.00024112]
[1741862843675,0.03085548,83188.0,83187.0,0.00024112]
[1741862844266,0.252439,83188.0,83187.0,0.00024112]
[1741862844467,0.3281686,83188.0,83187.0,0.00424112]
[1741862844808,0.39293048,83188.0,83187.0,0.00424112]
[1741862844951,0.42187012,83188.0,83187.0,0.00424112]
[1741862845598,0.09370152,83188.0,83187.0,0.00424112]
[1741862845753,0.09370152,83188.0,83187.0,0.25668412]
[1741862845951,0.09370152,83188.0,83187.0,0.25268412]
[1741862846179,0.08680951,83188.0,83187.0,0.25268412]
[1741862846587,0.08680951,83188.0,83187.0,1.75268412]
[1741862846793,0.0690005,83188.0,83187.0,1.75268412]
[1741862847484,0.05906655,83188.0,83187.0,1.50124112]
[1741862847690,0.05906655,83188.0,83187.0,0.00124112]
[1741862847888,0.05906655,83188.0,83187.0,0.00024112]
[1741862848094,0.05906655,83188.0,83187.0,0.00224112]
[1741862849055,0.05906655,83188.0,83187.0,0.01426212]
[1741862849262,0.0522194,83188.0,83187.0,0.01426212]
[1741862849573,0.04108877,83188.0,83187.0,0.01426212]
[1741862850032,0.04108877,83188.0,83187.0,0.29332311]
[1741862850033,0.01883553,83188.0,83187.0,0.29332311]
[1741862850230,0.25238,83208.0,83203.0,0.240374]
[1741862850432,0.012018,83207.0,83201.0,0.240379]
[1741862850703,0.02559375,83207.0,83205.0,0.240369]
[1741862850923,0.02559375,83207.0,83206.0,0.012018]
[1741862851085,0.01883325,83207.0,83206.0,0.012018]
[1741862851308,0.01883325,83207.0,83205.0,0.240369]
[1741862851484,0.01883325,83207.0,83202.0,0.252394]
[1741862851704,0.02183325,83207.0,83203.0,0.012018]
[1741862852011,0.00679682,83206.0,83203.0,0.252391]
[1741862852166,0.00679682,83206.0,83205.0,0.090218]
[1741862852386,0.00133931,83210.0,83209.0,0.008017]
[1741862852598,0.00133931,83210.0,83206.0,0.252385]
[1741862852799,0.012018,83205.0,83204.0,0.15932]
[1741862853046,0.252388,83205.0,83204.0,0.15932]
[1741862853547,0.25924675,83205.0,83204.0,0.15932]
[1741862853744,0.27039282,83205.0,83204.0,0.15932]
[1741862854702,0.27039282,83205.0,83204.0,0.002]
[1741862854909,0.240382,83201.0,83196.0,0.240393]
[1741862855119,0.240382,83201.0,83196.0,0.252412]
[1741862855937,0.0759714,83205.0,83204.0,0.240373]
[1741862856183,0.0759714,83205.0,83204.0,0.252391]
[1741862856369,0.00685875,83205.0,83204.0,0.252391]
[1741862856639,0.252379,83208.0,83203.0,0.240375]
[1741862856838,0.00689803,83207.0,83205.0,0.252386]
[1741862857075,0.00689803,83207.0,83205.0,0.252388]
[1741862857235,0.252405,83200.0,83195.0,0.240399]
[1741862857433,0.012019,83199.0,83195.0,0.240399]
[1741862857699,0.03432734,83199.0,83195.0,0.240399]
[1741862857834,0.03432734,83199.0,83194.0,0.1713]
[1741862858042,0.03432734,83199.0,83196.0,0.001]
[1741862858243,0.02230834,83199.0,83196.0,0.253413]
[1741862858441,0.04114107,83199.0,83196.0,0.012019]
[1741862858747,0.04114107,83199.0,83195.0,0.242396]
[1741862859118,0.02230834,83198.0,83195.0,0.240396]
[1741862859280,0.02230834,83198.0,83194.0,0.1713]
[1741862859481,0.02230834,83198.0,83196.0,0.002]
[1741862859706,0.02230834,83198.0,83195.0,0.240399]
[1741862859907,0.02230834,83198.0,83197.0,0.012019]
[1741862860526,0.02824242,83198.0,83197.0,0.012019]
[1741862861288,0.02824242,83198.0,83195.0,0.002]
[1741862861490,0.02824242,83198.0,83194.0,0.4117]
[1741862861760,0.02824242,83198.0,83195.0,0.252415]
[1741862861941,0.02824242,83198.0,83197.0,0.002]
[1741862862349,0.02824242,83198.0,83197.0,0.003]
[1741862862710,0.03940408,83198.0,83197.0,0.015019]
[1741862863183,0.03940408,83198.0,83197.0,0.017019]
[1741862863754,0.04042356,83198.0,83197.0,0.017019]
[1741862864155,0.03347,83198.0,83197.0,0.017019]
[1741862864351,0.03347,83198.0,83197.0,1.517019]
[1741862864754,0.03347,83198.0,83197.0,1.592119]
[1741862865563,0.02230834,83198.0,83197.0,1.592119]
[1741862868140,0.01883273,83199.0,83198.0,0.252409]
[1741862868703,0.00133931,83210.0,83208.0,0.252379]
[1741862869720,0.00133931,83210.0,83208.0,1.832779]
[1741862869721,0.02268327,83209.0,83208.0,1.832779]
[1741862869874,0.02268327,83209.0,83208.0,1.991939]
[1741862869875,0.02368327,83209.0,83208.0,1.991939]
[1741862870284,0.0023386,83209.0,83208.0,0.491939]
[1741862870544,0.0023386,83209.0,83208.0,0.411539]
[1741862870684,0.0013386,83209.0,83208.0,1.911539]
[1741862871096,0.0013386,83209.0,83208.0,1.912539]
[1741862871299,0.0003386,83209.0,83208.0,1.912539]
[1741862871895,0.0003386,83209.0,83208.0,1.913539]
[1741862873528,0.02267027,83209.0,83208.0,1.913539]
[1741862873882,0.02267027,83209.0,83208.0,0.413539]
[1741862875647,0.02267027,83209.0,83208.0,1.912539]
[1741862875850,0.0003386,83209.0,83208.0,1.913539]
[1741862876407,0.0003386,83209.0,83208.0,2.03223999]
[1741862876608,0.0003386,83209.0,83208.0,2.03323999]
[1741862881908,0.0003386,83209.0,83208.0,2.33323999]
[1741862882117,9.1e-07,83211.0,83210.0,0.557372]
[1741862882317,9.1e-07,83211.0,83210.0,0.75847299]
[1741862882667,9.1e-07,83211.0,83210.0,0.79595458]
[1741862883086,9.1e-07,83228.0,83227.0,0.005]
[1741862883275,0.0782,83264.0,83227.0,0.005]
[1741862883276,9.1e-07,83231.0,83230.0,0.752311]
[1741862883482,9.1e-07,83231.0,83230.0,0.67201199]
[1741862883659,9.1e-07,83231.0,83230.0,0.67601199]
[1741862884263,9.1e-07,83231.0,83230.0,0.72608361]
[1741862884802,9.1e-07,83231.0,83230.0,0.73208361]
[1741862885213,9.1e-07,83231.0,83230.0,0.75612121]
[1741862885430,9.1e-07,83231.0,83230.0,0.70612121]
[1741862885833,0.24283057,83252.0,83247.0,0.240248]
[1741862886136,0.012012,83250.0,83245.0,0.15904]
[1741862886531,0.252252,83250.0,83245.0,0.15904]
[1741862886734,0.01882269,83249.0,83245.0,0.15904]
[1741862886941,0.02579459,83249.0,83245.0,0.15904]
[1741862887147,0.02579459,83249.0,83247.0,0.001]
[1741862887361,0.02579459,83249.0,83248.0,0.012012]
[1741862887505,0.02579459,83249.0,83247.0,0.001]
[1741862887731,0.02579459,83249.0,83246.0,0.240249]
[1741862887937,0.02579459,83249.0,83248.0,0.252258]
[1741862888540,0.01882269,83249.0,83248.0,0.252258]
[1741862889770,0.01882269,83249.0,83248.0,0.37195899]
[1741862890015,0.0003388,83269.0,83266.0,0.240191]
[1741862890254,0.0003388,83269.0,83262.0,0.252213]
[1741862890436,0.252205,83266.0,83260.0,0.240211]
[1741862890638,0.252205,83266.0,83260.0,0.252221]
[1741862890841,0.00617418,83265.0,83261.0,0.252216]
[1741862891042,0.00617418,83265.0,83262.0,0.252213]
[1741862891251,0.240197,83265.0,83261.0,7.162e-05]
[1741862891419,0.00707464,83264.0,83262.0,0.240205]
[1741862892257,0.00707464,83264.0,83262.0,0.252215]
[1741862892468,0.00707464,83264.0,83263.0,0.01201]
[1741862892637,0.00617327,83264.0,83263.0,0.01321093]
[1741862893002,0.01915891,83269.0,83268.0,0.252197]
[1741862894125,0.01915891,83269.0,83268.0,0.240188]
[1741862894549,0.02015891,83269.0,83268.0,0.240188]
[1741862894927,0.02104125,83269.0,83268.0,0.240188]
[1741862895602,0.012009,83267.0,83264.0,0.15896]
[1741862895811,0.012009,83266.0,83264.0,0.15896]
[1741862896007,0.0008871,83266.0,83264.0,0.15896]
[1741862896185,0.0008871,83266.0,83261.0,7.162e-05]
[1741862896186,0.012009,83264.0,83261.0,7.162e-05]
[1741862896589,0.00087075,83263.0,83261.0,0.15899162]
[1741862897172,0.252204,83266.0,83264.0,0.001]
[1741862897573,0.252204,83266.0,83261.0,0.15899162]
[1741862897777,0.012009,83265.0,83261.0,0.15999162]
[1741862897957,0.012009,83265.0,83261.0,0.16099162]
[1741862898173,0.252207,83265.0,83261.0,0.15999162]
[1741862898375,0.252207,83265.0,83261.0,0.40019762]
[1741862898630,0.252207,83265.0,83264.0,0.001]
[1741862898766,0.01915891,83269.0,83267.0,0.240191]
[1741862898966,0.01915891,83269.0,83268.0,0.012009]
[1741862899718,0.240197,83265.0,83258.0,0.240216]
[1741862900008,0.012009,83267.0,83255.0,0.012011]
[1741862900009,0.01201,83262.0,83255.0,0.012011]
[1741862900211,0.01201,83262.0,83261.0,7.162e-05]
[1741862900466,0.01813599,83262.0,83261.0,7.162e-05]
[1741862900878,0.15354621,83262.0,83261.0,7.162e-05]
[1741862901092,0.21449294,83262.0,83261.0,0.00107162]
[1741862901273,0.23674925,83262.0,83261.0,7.162e-05]
[1741862901905,0.23674925,83262.0,83261.0,0.00107162]
[1741862902048,0.24787914,83262.0,83261.0,0.00107162]
[1741862902400,0.28349238,83262.0,83261.0,0.00107162]
[1741862902988,0.68870582,83262.0,83261.0,0.00107162]
[1741862903181,0.68870582,83262.0,83261.0,7.162e-05]
[1741862903387,0.64596269,83262.0,83261.0,7.162e-05]
[1741862903928,0.66478652,83262.0,83261.0,7.162e-05]
[1741862904228,0.66678652,83262.0,83261.0,7.162e-05]
[1741862904405,0.66678652,83262.0,83261.0,6.2e-07]
[1741862905477,0.66278652,83262.0,83261.0,6.2e-07]
[1741862905676,0.012014,83232.0,83231.0,0.0001693]
[1741862905881,0.25840892,83232.0,83231.0,0.00029392]
[1741862906055,0.00610292,83232.0,83231.0,0.00029392]
[1741862906274,0.06400551,83232.0,83231.0,0.01230792]
[1741862906480,0.07672926,83232.0,83231.0,0.01230792]
[1741862906878,0.07672926,83232.0,83231.0,1.51230792]
[1741862907489,0.01882667,83232.0,83231.0,1.51230792]
[1741862907691,0.01882667,83232.0,83231.0,1.63200891]
[1741862908092,0.01882667,83232.0,83231.0,1.63500891]
[1741862908516,0.01882667,83232.0,83231.0,1.51530792]